[Event "*** Titled Tuesday Blitz"]
[Site "Chess.com"]
[Date "2020.11.03"]
[Round "1"]
[White "chenxiaoyuer"]
[Black "JiiHart"]
[Result "1-0"]
[WhiteElo "2504"]
[BlackElo "2078"]
[TimeControl "180+1"]
[EndTime "10:08:04 PST"]
[Termination "chenxiaoyuer won by checkmate"]

1. e4 {[%clk 0:03:00.9]} 1... c5 {[%clk 0:02:59.3]} 2. Nf3 {[%clk 0:03:00.6]}
2... Nc6 {[%clk 0:02:59.5]} 3. d4 {[%clk 0:03:00.8]} 3... cxd4 {[%clk
0:02:59.3]} 4. Nxd4 {[%clk 0:03:01.7]} 4... Nf6 {[%clk 0:02:59.5]} 5. Nc3 {[%clk
0:03:01.5]} 5... d6 {[%clk 0:02:59.6]} 6. Be2 {[%clk 0:03:01.2]} 6... e5 {[%clk
0:02:59.1]} 7. Nf3 {[%clk 0:03:01.3]} 7... h6 {[%clk 0:02:58.2]} 8. O-O {[%clk
0:03:01.4]} 8... Be7 {[%clk 0:02:56.1]} 9. Re1 {[%clk 0:03:01.9]} 9... Be6
{[%clk 0:02:53.8]} 10. Bf1 {[%clk 0:02:56.4]} 10... O-O {[%clk 0:02:50.9]} 11.
Nd5 {[%clk 0:02:46.4]} 11... Bxd5 {[%clk 0:02:44.8]} 12. exd5 {[%clk 0:02:46]}
12... Nb8 {[%clk 0:02:43.6]} 13. c4 {[%clk 0:02:42.8]} 13... Nbd7 {[%clk
0:02:43.3]} 14. Be3 {[%clk 0:02:41.7]} 14... a5 {[%clk 0:02:28.4]} 15. Nd2
{[%clk 0:02:33.2]} 15... Qc7 {[%clk 0:02:24.5]} 16. Rc1 {[%clk 0:02:21.6]} 16...
Rfc8 {[%clk 0:02:22.5]} 17. Nb1 {[%clk 0:02:17.8]} 17... Nc5 {[%clk 0:02:10.1]}
18. Nc3 {[%clk 0:02:15.7]} 18... Qd7 {[%clk 0:02:03.5]} 19. h3 {[%clk
0:01:49.7]} 19... Bf8 {[%clk 0:02:00.4]} 20. f4 {[%clk 0:01:36.1]} 20... exf4
{[%clk 0:01:53.9]} 21. Bxf4 {[%clk 0:01:37]} 21... Re8 {[%clk 0:01:54]} 22. Qf3
{[%clk 0:01:33.1]} 22... Qf5 {[%clk 0:01:27]} 23. Nb5 {[%clk 0:01:17.9]} 23...
Rad8 {[%clk 0:00:46.1]} 24. Rxe8 {[%clk 0:00:54.4]} 24... Nxe8 {[%clk
0:00:43.3]} 25. Re1 {[%clk 0:00:50]} 25... Nf6 {[%clk 0:00:42.9]} 26. Nd4 {[%clk
0:00:32.2]} 26... Qd7 {[%clk 0:00:29.5]} 27. Bxh6 {[%clk 0:00:30.5]} 27... gxh6
{[%clk 0:00:25.4]} 28. Qxf6 {[%clk 0:00:30.2]} 28... Bg7 {[%clk 0:00:26.1]} 29.
Qh4 {[%clk 0:00:24.8]} 29... Re8 {[%clk 0:00:16.6]} 30. Rxe8+ {[%clk 0:00:22.8]}
30... Qxe8 {[%clk 0:00:16.7]} 31. Nf5 {[%clk 0:00:23.7]} 31... Qe5 {[%clk
0:00:16.2]} 32. Qg4 {[%clk 0:00:18.7]} 32... Kh7 {[%clk 0:00:14.3]} 33. Nxg7
{[%clk 0:00:13.8]} 33... Qxg7 {[%clk 0:00:14.2]} 34. Qf4 {[%clk 0:00:10]} 34...
Qg6 {[%clk 0:00:10.6]} 35. b3 {[%clk 0:00:08]} 35... b6 {[%clk 0:00:10]} 36. Kh2
{[%clk 0:00:07]} 36... Kg7 {[%clk 0:00:09.5]} 37. Be2 {[%clk 0:00:07.1]} 37...
Nd7 {[%clk 0:00:07.7]} 38. Bf3 {[%clk 0:00:06.8]} 38... Ne5 {[%clk 0:00:07.6]}
39. Qd4 {[%clk 0:00:06.9]} 39... Qf5 {[%clk 0:00:06.9]} 40. Qe3 {[%clk
0:00:05.7]} 40... f6 {[%clk 0:00:06.8]} 41. Be4 {[%clk 0:00:05.4]} 41... Qg5
{[%clk 0:00:05.8]} 42. Qxb6 {[%clk 0:00:03.5]} 42... Qf4+ {[%clk 0:00:04.4]} 43.
Kh1 {[%clk 0:00:03.4]} 43... Qc1+ {[%clk 0:00:04.4]} 44. Kh2 {[%clk 0:00:02.7]}
44... Qf4+ {[%clk 0:00:03.5]} 45. Kh1 {[%clk 0:00:03.2]} 45... Qc1+ {[%clk
0:00:03.7]} 46. Qg1 {[%clk 0:00:03]} 46... Qf4 {[%clk 0:00:03.7]} 47. Bf3 {[%clk
0:00:02.8]} 47... Nxf3 {[%clk 0:00:03.4]} 48. gxf3+ {[%clk 0:00:03.3]} 48... Kf7
{[%clk 0:00:03.9]} 49. Qg4 {[%clk 0:00:03.7]} 49... Qc1+ {[%clk 0:00:03.8]} 50.
Kg2 {[%clk 0:00:04.1]} 50... Qc2+ {[%clk 0:00:03.9]} 51. Kg3 {[%clk 0:00:04.6]}
51... Qxa2 {[%clk 0:00:04.1]} 52. Qd7+ {[%clk 0:00:05]} 52... Kg6 {[%clk
0:00:03.6]} 53. Qxd6 {[%clk 0:00:05.4]} 53... Qxb3 {[%clk 0:00:03.8]} 54. Qd8
{[%clk 0:00:05.1]} 54... a4 {[%clk 0:00:04.1]} 55. Qg8+ {[%clk 0:00:05.2]} 55...
Kf5 {[%clk 0:00:03.5]} 56. Qg4+ {[%clk 0:00:05.5]} 56... Ke5 {[%clk 0:00:03.7]}
57. Qf4# {[%clk 0:00:06.4]} 1-0

[Event "*** Titled Tuesday Blitz"]
[Site "Chess.com"]
[Date "2020.11.03"]
[Round "1"]
[White "Pilopa"]
[Black "akanga001"]
[Result "1-0"]
[WhiteElo "2481"]
[BlackElo "1917"]
[TimeControl "180+1"]
[EndTime "10:08:05 PST"]
[Termination "Pilopa won on time"]

1. d4 {[%clk 0:02:58]} 1... d5 {[%clk 0:02:58.7]} 2. c4 {[%clk 0:02:58.4]} 2...
e6 {[%clk 0:02:58.5]} 3. Nf3 {[%clk 0:02:58.9]} 3... Nf6 {[%clk 0:02:58.3]} 4.
Nc3 {[%clk 0:02:59.5]} 4... Be7 {[%clk 0:02:58.3]} 5. Bf4 {[%clk 0:02:55.9]}
5... O-O {[%clk 0:02:57.9]} 6. e3 {[%clk 0:02:56.4]} 6... b6 {[%clk 0:02:57.8]}
7. Rc1 {[%clk 0:02:54.7]} 7... Bb7 {[%clk 0:02:57.6]} 8. Be2 {[%clk 0:02:51.7]}
8... dxc4 {[%clk 0:02:57.4]} 9. Bxc4 {[%clk 0:02:52.6]} 9... c5 {[%clk
0:02:57.5]} 10. O-O {[%clk 0:02:52.5]} 10... Nc6 {[%clk 0:02:48.4]} 11. dxc5
{[%clk 0:02:49.1]} 11... Bxc5 {[%clk 0:02:46.7]} 12. a3 {[%clk 0:02:48.6]} 12...
Qxd1 {[%clk 0:02:44.4]} 13. Rfxd1 {[%clk 0:02:49.5]} 13... Rfd8 {[%clk
0:02:42.7]} 14. b4 {[%clk 0:02:49]} 14... Be7 {[%clk 0:02:39.2]} 15. h3 {[%clk
0:02:49.5]} 15... Rxd1+ {[%clk 0:02:36.2]} 16. Rxd1 {[%clk 0:02:50.4]} 16... Rd8
{[%clk 0:02:36.3]} 17. Rxd8+ {[%clk 0:02:49.1]} 17... Bxd8 {[%clk 0:02:36.2]}
18. Nb5 {[%clk 0:02:40.4]} 18... Be7 {[%clk 0:01:58.9]} 19. Nd6 {[%clk
0:02:16.7]} 19... Bxd6 {[%clk 0:01:56.1]} 20. Bxd6 {[%clk 0:02:17.6]} 20... Ne4
{[%clk 0:01:52.2]} 21. Bc7 {[%clk 0:02:14.9]} 21... Kf8 {[%clk 0:01:48.8]} 22.
Bd3 {[%clk 0:02:07.8]} 22... Nf6 {[%clk 0:01:45.7]} 23. Ne5 {[%clk 0:01:57.5]}
23... Nxe5 {[%clk 0:01:43.8]} 24. Bxe5 {[%clk 0:01:58.4]} 24... Ke7 {[%clk
0:01:38.9]} 25. Bb8 {[%clk 0:01:58.4]} 25... a6 {[%clk 0:01:36.4]} 26. Be5
{[%clk 0:01:40.7]} 26... g6 {[%clk 0:01:27.3]} 27. Bd4 {[%clk 0:01:40]} 27... b5
{[%clk 0:01:25]} 28. f3 {[%clk 0:01:36.1]} 28... Nd7 {[%clk 0:01:20]} 29. e4
{[%clk 0:01:35.5]} 29... e5 {[%clk 0:01:19.7]} 30. Be3 {[%clk 0:01:36]} 30...
Ke6 {[%clk 0:01:17.6]} 31. g4 {[%clk 0:01:32.6]} 31... f6 {[%clk 0:01:04.3]} 32.
Bc2 {[%clk 0:01:32.2]} 32... h5 {[%clk 0:00:59.5]} 33. gxh5 {[%clk 0:01:21.6]}
33... gxh5 {[%clk 0:00:59.2]} 34. h4 {[%clk 0:01:21.2]} 34... Nb8 {[%clk
0:00:53.2]} 35. Bb3+ {[%clk 0:01:19.6]} 35... Ke7 {[%clk 0:00:52.7]} 36. Bc5+
{[%clk 0:01:19.7]} 36... Kd7 {[%clk 0:00:40.7]} 37. Bf7 {[%clk 0:01:18.7]} 37...
Nc6 {[%clk 0:00:39.3]} 38. Bxh5 {[%clk 0:01:12.8]} 38... Nd4 {[%clk 0:00:39.2]}
39. Bg4+ {[%clk 0:01:03]} 39... Ke8 {[%clk 0:00:35.2]} 40. Bxd4 {[%clk
0:00:32.5]} 40... exd4 {[%clk 0:00:33.8]} 41. Kf2 {[%clk 0:00:33.4]} 41... Kf7
{[%clk 0:00:23.4]} 42. Ke2 {[%clk 0:00:32.3]} 42... Kg6 {[%clk 0:00:23.8]} 43.
Kd3 {[%clk 0:00:30.5]} 43... f5 {[%clk 0:00:11.4]} 44. Bxf5+ {[%clk 0:00:28.9]}
44... Kh5 {[%clk 0:00:11.7]} 45. Kxd4 {[%clk 0:00:29.8]} 45... Kxh4 {[%clk
0:00:11.3]} 46. Ke3 {[%clk 0:00:29.6]} 46... Kg5 {[%clk 0:00:11.1]} 47. Be6
{[%clk 0:00:29.2]} 47... Kf6 {[%clk 0:00:10.8]} 48. Bd5 {[%clk 0:00:29.5]} 48...
Bc8 {[%clk 0:00:08.3]} 49. f4 {[%clk 0:00:29.1]} 49... Ke7 {[%clk 0:00:06.7]}
50. Kd4 {[%clk 0:00:29.5]} 50... Kd6 {[%clk 0:00:07.6]} 51. e5+ {[%clk
0:00:29.7]} 51... Kc7 {[%clk 0:00:07]} 52. Be4 {[%clk 0:00:30.6]} 52... Kb6
{[%clk 0:00:04.4]} 53. f5 {[%clk 0:00:30.9]} 53... a5 {[%clk 0:00:04.1]} 54. e6
{[%clk 0:00:29.2]} 54... axb4 {[%clk 0:00:03.4]} 55. axb4 {[%clk 0:00:30.1]}
55... Kc7 {[%clk 0:00:02.6]} 56. Ke5 {[%clk 0:00:30.2]} 56... Kd8 {[%clk
0:00:02.4]} 57. f6 {[%clk 0:00:30.5]} 57... Ke8 {[%clk 0:00:02.2]} 58. Bc6+
{[%clk 0:00:30.1]} 58... Kf8 {[%clk 0:00:01.4]} 59. e7+ {[%clk 0:00:30.5]} 1-0

[Event "*** Titled Tuesday Blitz"]
[Site "Chess.com"]
[Date "2020.11.03"]
[Round "1"]
[White "Baby_Legs"]
[Black "Lysiak_Poltorak"]
[Result "1-0"]
[WhiteElo "2677"]
[BlackElo "2346"]
[TimeControl "180+1"]
[EndTime "10:08:07 PST"]
[Termination "Baby_Legs won on time"]

1. Nf3 {[%clk 0:03:00.9]} 1... g5 {[%clk 0:02:59.1]} 2. Nxg5 {[%clk 0:03:00.1]}
2... e5 {[%clk 0:02:59.4]} 3. d3 {[%clk 0:02:57.9]} 3... Be7 {[%clk 0:02:58.4]}
4. Nf3 {[%clk 0:02:57.4]} 4... Nc6 {[%clk 0:02:57.5]} 5. e4 {[%clk 0:02:57.2]}
5... d6 {[%clk 0:02:55]} 6. Nc3 {[%clk 0:02:57.3]} 6... f5 {[%clk 0:02:55]} 7.
Nd5 {[%clk 0:02:54.5]} 7... Nf6 {[%clk 0:02:53]} 8. Nxe7 {[%clk 0:02:52.9]} 8...
Qxe7 {[%clk 0:02:52.7]} 9. Bg5 {[%clk 0:02:52.8]} 9... Bd7 {[%clk 0:02:42.7]}
10. h3 {[%clk 0:02:40.4]} 10... Rg8 {[%clk 0:02:38.8]} 11. exf5 {[%clk
0:02:36.3]} 11... Bxf5 {[%clk 0:02:37.4]} 12. Qd2 {[%clk 0:02:31.8]} 12... O-O-O
{[%clk 0:02:29.9]} 13. O-O-O {[%clk 0:02:31.2]} 13... Qf7 {[%clk 0:02:27.5]} 14.
Kb1 {[%clk 0:02:25.9]} 14... Rdf8 {[%clk 0:02:27.3]} 15. Bh6 {[%clk 0:02:07.6]}
15... Re8 {[%clk 0:02:26.7]} 16. g4 {[%clk 0:02:07.6]} 16... Be6 {[%clk
0:02:24.4]} 17. a3 {[%clk 0:02:04.4]} 17... Bd5 {[%clk 0:02:20.4]} 18. Bg2
{[%clk 0:02:02.3]} 18... Nxg4 {[%clk 0:01:22.9]} 19. Ng5 {[%clk 0:01:54.2]}
19... Qxf2 {[%clk 0:01:21.4]} 20. Bxd5 {[%clk 0:01:36.1]} 20... Qxd2 {[%clk
0:01:20.8]} 21. Rxd2 {[%clk 0:01:36.2]} 21... Nxh6 {[%clk 0:01:20.9]} 22. Bxg8
{[%clk 0:01:36.2]} 22... Rxg8 {[%clk 0:01:21.6]} 23. Nxh7 {[%clk 0:01:35.5]}
23... Nd4 {[%clk 0:01:13.6]} 24. Rf2 {[%clk 0:01:35.5]} 24... b6 {[%clk
0:01:04.6]} 25. Rf8+ {[%clk 0:01:30.4]} 25... Rxf8 {[%clk 0:01:04.4]} 26. Nxf8
{[%clk 0:01:31.3]} 26... d5 {[%clk 0:00:57.8]} 27. Ng6 {[%clk 0:01:30.6]} 27...
Nc6 {[%clk 0:00:53.9]} 28. Re1 {[%clk 0:01:29.9]} 28... Nf7 {[%clk 0:00:53.7]}
29. Rf1 {[%clk 0:01:29.9]} 29... Nd6 {[%clk 0:00:53.5]} 30. h4 {[%clk
0:01:29.7]} 30... e4 {[%clk 0:00:52.6]} 31. dxe4 {[%clk 0:01:29.9]} 31... dxe4
{[%clk 0:00:51.2]} 32. h5 {[%clk 0:01:30.3]} 32... Nc4 {[%clk 0:00:50.8]} 33.
Kc1 {[%clk 0:01:27.4]} 33... N6e5 {[%clk 0:00:42.2]} 34. h6 {[%clk 0:01:24.6]}
34... Nxg6 {[%clk 0:00:42.2]} 35. h7 {[%clk 0:01:21.8]} 35... Kd7 {[%clk
0:00:24.6]} 36. Rf6 {[%clk 0:01:18.3]} 36... Nce5 {[%clk 0:00:24.3]} 37. Rf4
{[%clk 0:01:12.9]} 37... e3 {[%clk 0:00:20.8]} 38. Re4 {[%clk 0:01:13]} 38...
Ke6 {[%clk 0:00:20.3]} 39. Rxe3 {[%clk 0:01:13.2]} 39... Kf6 {[%clk 0:00:20.7]}
40. Rc3 {[%clk 0:01:11.9]} 40... c5 {[%clk 0:00:20.6]} 41. Rh3 {[%clk
0:01:11.4]} 41... Kg7 {[%clk 0:00:20.7]} 42. Kd2 {[%clk 0:01:11.9]} 42... Nf7
{[%clk 0:00:20.4]} 43. Kc3 {[%clk 0:01:09.4]} 43... Ng5 {[%clk 0:00:20.8]} 44.
Rh1 {[%clk 0:01:07.3]} 44... Nxh7 {[%clk 0:00:20.6]} 45. Kc4 {[%clk 0:01:07.9]}
45... Nf6 {[%clk 0:00:17]} 46. Kb5 {[%clk 0:01:08.1]} 46... Kf7 {[%clk
0:00:09.9]} 47. Ka6 {[%clk 0:01:08.4]} 47... Nd5 {[%clk 0:00:09.9]} 48. Kxa7
{[%clk 0:01:08.4]} 48... Ne5 {[%clk 0:00:09.1]} 49. b3 {[%clk 0:01:03.5]} 49...
c4 {[%clk 0:00:09.1]} 50. Rh5 {[%clk 0:00:59]} 50... Ke6 {[%clk 0:00:09.3]} 51.
Rh6+ {[%clk 0:00:56.4]} 51... Kd7 {[%clk 0:00:08.1]} 52. Kb7 {[%clk 0:00:56.9]}
52... cxb3 {[%clk 0:00:07.6]} 53. cxb3 {[%clk 0:00:57.7]} 53... Nd3 {[%clk
0:00:04.9]} 54. b4 {[%clk 0:00:54.1]} 54... Ne5 {[%clk 0:00:04.5]} 55. Rh5
{[%clk 0:00:48.3]} 55... Kd6 {[%clk 0:00:03.8]} 56. Rh6+ {[%clk 0:00:49.2]}
56... Kd7 {[%clk 0:00:04.2]} 57. Rh4 {[%clk 0:00:46.4]} 57... Kd6 {[%clk
0:00:04.2]} 58. Rd4 {[%clk 0:00:46]} 58... Nc6 {[%clk 0:00:01.6]} 59. Rd1 {[%clk
0:00:45.8]} 59... Ne5 {[%clk 0:00:01.4]} 60. a4 {[%clk 0:00:44.7]} 60... Nc4
{[%clk 0:00:01.5]} 61. b5 {[%clk 0:00:42.9]} 61... Ke6 {[%clk 0:00:01.8]} 62.
Rd4 {[%clk 0:00:39]} 62... Kd6 {[%clk 0:00:01.9]} 63. Rxc4 {[%clk 0:00:38.9]}
1-0

[Event "*** Titled Tuesday Blitz"]
[Site "Chess.com"]
[Date "2020.11.03"]
[Round "1"]
[White "BulletMercenary"]
[Black "VladimirBelous"]
[Result "1/2-1/2"]
[WhiteElo "2424"]
[BlackElo "2829"]
[TimeControl "180+1"]
[EndTime "10:08:08 PST"]
[Termination "Game drawn by repetition"]

1. e4 {[%clk 0:03:00.9]} 1... c5 {[%clk 0:02:59.5]} 2. d4 {[%clk 0:03:01.2]}
2... cxd4 {[%clk 0:02:59.3]} 3. Nf3 {[%clk 0:03:01.8]} 3... Nc6 {[%clk
0:02:57.8]} 4. Nxd4 {[%clk 0:03:01.7]} 4... e5 {[%clk 0:02:57.3]} 5. Nb5 {[%clk
0:03:00.3]} 5... d6 {[%clk 0:02:57.6]} 6. N1c3 {[%clk 0:03:00.3]} 6... a6 {[%clk
0:02:57.6]} 7. Na3 {[%clk 0:03:01]} 7... b5 {[%clk 0:02:58]} 8. Nd5 {[%clk
0:03:01.7]} 8... Nge7 {[%clk 0:02:58.4]} 9. c4 {[%clk 0:03:01.8]} 9... Nxd5
{[%clk 0:02:58.5]} 10. cxd5 {[%clk 0:03:01.5]} 10... Nd4 {[%clk 0:02:58.3]} 11.
Nc2 {[%clk 0:03:00.4]} 11... Bg4 {[%clk 0:02:57.8]} 12. f3 {[%clk 0:03:00.2]}
12... Qh4+ {[%clk 0:02:56.5]} 13. Kd2 {[%clk 0:02:42.2]} 13... Qf2+ {[%clk
0:02:42.9]} 14. Kd3 {[%clk 0:02:42.4]} 14... Nxf3 {[%clk 0:02:20.9]} 15. Be3
{[%clk 0:02:35.6]} 15... Nxh2 {[%clk 0:01:40.4]} 16. Bxf2 {[%clk 0:02:22.7]}
16... Bxd1 {[%clk 0:01:40.2]} 17. Rxd1 {[%clk 0:02:12.1]} 17... Ng4 {[%clk
0:01:40.3]} 18. Bg3 {[%clk 0:02:04.3]} 18... Rc8 {[%clk 0:01:39.4]} 19. Be2
{[%clk 0:02:00.5]} 19... Nf6 {[%clk 0:01:26.4]} 20. Rc1 {[%clk 0:01:50.3]} 20...
Be7 {[%clk 0:01:15.1]} 21. Nb4 {[%clk 0:01:47.7]} 21... Rc4 {[%clk 0:01:13.5]}
22. Rxc4 {[%clk 0:01:40.3]} 22... bxc4+ {[%clk 0:01:14.4]} 23. Ke3 {[%clk
0:01:39.1]} 23... Bd8 {[%clk 0:01:10]} 24. Bxc4 {[%clk 0:01:36.5]} 24... Bb6+
{[%clk 0:01:10.6]} 25. Kd3 {[%clk 0:01:35.7]} 25... a5 {[%clk 0:01:11.5]} 26.
Nc6 {[%clk 0:01:30.6]} 26... Kd7 {[%clk 0:01:11]} 27. Bb5 {[%clk 0:01:26.6]}
27... Kc7 {[%clk 0:01:10.2]} 28. Rc1 {[%clk 0:01:24.8]} 28... Kb7 {[%clk
0:01:10.7]} 29. Ne7 {[%clk 0:01:20.5]} 29... Bc5 {[%clk 0:01:08.7]} 30. Be1
{[%clk 0:01:11.5]} 30... Kb6 {[%clk 0:01:07.6]} 31. Ba4 {[%clk 0:01:10.4]} 31...
Nh5 {[%clk 0:01:06.5]} 32. g3 {[%clk 0:01:09.6]} 32... g6 {[%clk 0:01:06.9]} 33.
Nc6 {[%clk 0:01:05]} 33... Ra8 {[%clk 0:01:04.8]} 34. a3 {[%clk 0:00:58.1]}
34... f5 {[%clk 0:01:04.5]} 35. Nxa5 {[%clk 0:00:50.1]} 35... fxe4+ {[%clk
0:00:57.4]} 36. Kxe4 {[%clk 0:00:49.8]} 36... Nf6+ {[%clk 0:00:53.2]} 37. Kd3
{[%clk 0:00:46.4]} 37... Rf8 {[%clk 0:00:51.6]} 38. Bc6 {[%clk 0:00:42.2]} 38...
Ng4 {[%clk 0:00:49.5]} 39. Nc4+ {[%clk 0:00:39.4]} 39... Ka7 {[%clk 0:00:50.1]}
40. b4 {[%clk 0:00:38.4]} 40... Bd4 {[%clk 0:00:41.9]} 41. Nxd6 {[%clk 0:00:38]}
41... Rf3+ {[%clk 0:00:42.4]} 42. Kc4 {[%clk 0:00:37.2]} 42... Kb6 {[%clk
0:00:38.6]} 43. a4 {[%clk 0:00:26.8]} 43... Ne3+ {[%clk 0:00:31.2]} 44. Kd3
{[%clk 0:00:27.1]} 44... Nf5+ {[%clk 0:00:28.9]} 45. Ke2 {[%clk 0:00:20.7]}
45... Re3+ {[%clk 0:00:29.3]} 46. Kd2 {[%clk 0:00:21]} 46... Nxd6 {[%clk
0:00:30.2]} 47. a5+ {[%clk 0:00:17.5]} 47... Ka6 {[%clk 0:00:30.7]} 48. Bf2
{[%clk 0:00:16.9]} 48... Ne4+ {[%clk 0:00:30.5]} 49. Kc2 {[%clk 0:00:14.7]}
49... Rc3+ {[%clk 0:00:30.9]} 50. Kb1 {[%clk 0:00:14.7]} 50... Nd2+ {[%clk
0:00:29.5]} 51. Kb2 {[%clk 0:00:13.8]} 51... Rxc6+ {[%clk 0:00:23.1]} 52. Bxd4
{[%clk 0:00:13.2]} 52... Rxc1 {[%clk 0:00:23.3]} 53. Kxc1 {[%clk 0:00:05.3]}
53... Nb3+ {[%clk 0:00:23.5]} 54. Kc2 {[%clk 0:00:05.5]} 54... Nxd4+ {[%clk
0:00:24.1]} 55. Kd3 {[%clk 0:00:06.2]} 55... Nf5 {[%clk 0:00:19.9]} 56. Ke4
{[%clk 0:00:05.3]} 56... Nxg3+ {[%clk 0:00:20]} 57. Kxe5 {[%clk 0:00:05.5]}
57... Nf5 {[%clk 0:00:20.1]} 58. d6 {[%clk 0:00:05]} 58... Nxd6 {[%clk
0:00:16.5]} 59. Kxd6 {[%clk 0:00:05.9]} 59... Kb5 {[%clk 0:00:17.1]} 60. Ke5
{[%clk 0:00:05.7]} 60... h5 {[%clk 0:00:16]} 61. Kf4 {[%clk 0:00:06]} 61... Ka6
{[%clk 0:00:15.7]} 62. Kg5 {[%clk 0:00:06.3]} 62... Kb5 {[%clk 0:00:15.8]} 63.
Kh4 {[%clk 0:00:06.6]} 63... Ka6 {[%clk 0:00:14.1]} 64. Kg5 {[%clk 0:00:06.9]}
64... Kb5 {[%clk 0:00:14.7]} 65. Kh4 {[%clk 0:00:07.3]} 65... Ka6 {[%clk
0:00:15.1]} 66. Kg5 {[%clk 0:00:07.6]} 1/2-1/2

[Event "*** Titled Tuesday Blitz"]
[Site "Chess.com"]
[Date "2020.11.03"]
[Round "1"]
[White "obliviate12"]
[Black "GMaka"]
[Result "0-1"]
[WhiteElo "2708"]
[BlackElo "2387"]
[TimeControl "180+1"]
[EndTime "10:08:08 PST"]
[Termination "GMaka won on time"]

1. e4 {[%clk 0:03:00.3]} 1... c6 {[%clk 0:02:59.6]} 2. Nf3 {[%clk 0:02:59.2]}
2... d5 {[%clk 0:03:00.5]} 3. d3 {[%clk 0:02:59.9]} 3... dxe4 {[%clk 0:02:58.4]}
4. dxe4 {[%clk 0:03:00.8]} 4... Qxd1+ {[%clk 0:02:57.5]} 5. Kxd1 {[%clk
0:03:01.7]} 5... Bg4 {[%clk 0:02:58.1]} 6. Be2 {[%clk 0:03:00.9]} 6... Nd7
{[%clk 0:02:57.5]} 7. Nfd2 {[%clk 0:02:57.7]} 7... Bxe2+ {[%clk 0:02:56.8]} 8.
Kxe2 {[%clk 0:02:58.6]} 8... e5 {[%clk 0:02:57.2]} 9. a4 {[%clk 0:02:58.1]} 9...
a5 {[%clk 0:02:56.1]} 10. Nc4 {[%clk 0:02:53]} 10... Bc5 {[%clk 0:02:52.9]} 11.
Nbd2 {[%clk 0:02:41.3]} 11... Ngf6 {[%clk 0:02:25]} 12. f3 {[%clk 0:02:40.6]}
12... Ke7 {[%clk 0:02:04.5]} 13. Nb3 {[%clk 0:02:40.5]} 13... Bb6 {[%clk
0:02:04.9]} 14. Bd2 {[%clk 0:02:28.3]} 14... Ra6 {[%clk 0:01:42.9]} 15. Nbxa5
{[%clk 0:02:14]} 15... Bxa5 {[%clk 0:01:35.3]} 16. Nxa5 {[%clk 0:02:00.7]} 16...
Rha8 {[%clk 0:01:32.2]} 17. b4 {[%clk 0:01:25.7]} 17... b6 {[%clk 0:00:47.8]}
18. Nxc6+ {[%clk 0:01:24.4]} 18... Kd6 {[%clk 0:00:42.6]} 19. b5 {[%clk
0:00:56.5]} 19... Rxa4 {[%clk 0:00:42.2]} 20. Bb4+ {[%clk 0:00:56.7]} 20... Kc7
{[%clk 0:00:33.7]} 21. Bc3 {[%clk 0:00:56.4]} 21... Rxa1 {[%clk 0:00:30.4]} 22.
Rxa1 {[%clk 0:00:57.3]} 22... Rxa1 {[%clk 0:00:29.3]} 23. Bxa1 {[%clk
0:00:57.4]} 23... Kd6 {[%clk 0:00:30.2]} 24. c4 {[%clk 0:00:42.9]} 24... Ne8
{[%clk 0:00:28.9]} 25. Bb2 {[%clk 0:00:39.4]} 25... f6 {[%clk 0:00:28.5]} 26.
Ba3+ {[%clk 0:00:38.7]} 26... Nc5 {[%clk 0:00:28.5]} 27. Ke3 {[%clk 0:00:37.8]}
27... Nc7 {[%clk 0:00:28.5]} 28. Nb4 {[%clk 0:00:34.7]} 28... Kd7 {[%clk
0:00:20]} 29. g3 {[%clk 0:00:30.5]} 29... h5 {[%clk 0:00:12.7]} 30. h4 {[%clk
0:00:28.7]} 30... g5 {[%clk 0:00:12.1]} 31. Nd5 {[%clk 0:00:25]} 31... Nxd5+
{[%clk 0:00:11.1]} 32. cxd5 {[%clk 0:00:24.7]} 32... Nb7 {[%clk 0:00:08.1]} 33.
hxg5 {[%clk 0:00:16.3]} 33... fxg5 {[%clk 0:00:09]} 34. Ke2 {[%clk 0:00:15.4]}
34... Nc5 {[%clk 0:00:07.7]} 35. Kf2 {[%clk 0:00:08.9]} 35... Nb3 {[%clk
0:00:07.9]} 36. Ke3 {[%clk 0:00:07.7]} 36... Nd4 {[%clk 0:00:08.8]} 37. Bb2
{[%clk 0:00:07.3]} 37... Nxb5 {[%clk 0:00:09.2]} 38. Bxe5 {[%clk 0:00:07.7]}
38... Na3 {[%clk 0:00:09.5]} 39. f4 {[%clk 0:00:07.9]} 39... Nc4+ {[%clk
0:00:09.7]} 40. Kd4 {[%clk 0:00:08.1]} 40... Nxe5 {[%clk 0:00:09.7]} 41. Kxe5
{[%clk 0:00:07.8]} 41... b5 {[%clk 0:00:09.9]} 42. Kf6 {[%clk 0:00:07.4]} 42...
h4 {[%clk 0:00:09.5]} 43. e5 {[%clk 0:00:08.3]} 43... hxg3 {[%clk 0:00:09.4]}
44. e6+ {[%clk 0:00:06.3]} 44... Kc7 {[%clk 0:00:09.9]} 45. e7 {[%clk
0:00:06.4]} 45... g2 {[%clk 0:00:10.8]} 46. e8=Q {[%clk 0:00:06.7]} 46... g1=Q
{[%clk 0:00:11.7]} 47. Qc6+ {[%clk 0:00:06.9]} 47... Kd8 {[%clk 0:00:11.6]} 48.
d6 {[%clk 0:00:05.1]} 48... Qd4+ {[%clk 0:00:11]} 49. Kg6 {[%clk 0:00:01.5]}
49... Qd2 {[%clk 0:00:08.3]} 0-1